fUST/lending_fUST_20250103
["ID","MTS","AMOUNT","RATE_DAILY","PERIOD"]
[347469256,1735842643107,-500.0,0.00019178,2]
[347469257,1735842643117,-500.0,0.00019178,2]
[347469258,1735842643127,-736.67,0.00019178,2]
[347469259,1735842643137,-500.0,0.00019178,2]
[347469260,1735842643147,-602.53,0.00019178,2]
[347469261,1735842643157,-500.0,0.00019178,2]
[347469262,1735842643169,-14565.1,0.00019178,2]
[347469263,1735842643179,-167.414215,0.00019178,2]
[347469265,1735842643189,-164.9847081,0.00019178,2]
[347469266,1735842643199,-563.34907343,0.00019414,2]
[347469267,1735842643208,-150.0,0.00019416,2]
[347469268,1735842643217,-622.41881044,0.00019451,2]
[347469269,1735842643226,-294.89023849,0.00019451,2]
[347469270,1735842643237,-500.0,0.00019451,2]
[347469271,1735842643249,-463.87111247,0.00019451,2]
[347469272,1735842643260,-500.0,0.00019451,2]
[347469273,1735842643270,-500.0,0.00019451,2]
[347469274,1735842643281,-500.0,0.00019452,3]
[347469275,1735842643293,-500.0,0.00019452,3]
[347469276,1735842643302,-500.0,0.00019452,3]
[347469277,1735842643314,-500.0,0.00019452,3]
[347469278,1735842643324,-228.40318252,0.00019452,2]
[347469279,1735842643334,-500.0,0.00019452,3]
[347469281,1735842643343,-500.0,0.00019452,3]
[347469282,1735842643352,-419.43,0.00019452,3]
[347469283,1735842643361,-1755.04,0.00019452,3]
[347469284,1735842643370,-500.0,0.00019452,3]
[347469285,1735842643379,-500.0,0.00019452,3]
[347469286,1735842643389,-500.0,0.00019452,3]
[347469287,1735842643398,-533.67,0.00019452,3]
[347469288,1735842643407,-500.0,0.00019452,3]
[347469289,1735842643417,-1165.51,0.00019452,3]
[347469290,1735842643427,-500.0,0.00019452,3]
[347469291,1735842643436,-500.0,0.00019452,3]
[347469292,1735842643445,-872.02,0.00019452,3]
[347469293,1735842643454,-693.1,0.00019452,3]
[347469294,1735842643463,-401.08,0.00019452,3]
[347469295,1735842643472,-500.0,0.00019452,3]
[347469296,1735842643481,-500.0,0.00019452,3]
[347469297,1735842643490,-235.94055217,0.00019452,3]
[347469299,1735842643499,-500.0,0.00019452,3]
[347469300,1735842643509,-500.0,0.00019452,3]
[347469301,1735842643519,-500.0,0.00019452,3]
[347469302,1735842643528,-431.62,0.00019452,3]
[347469303,1735842643539,-500.0,0.00019452,3]
[347469304,1735842643549,-500.0,0.00019452,3]
[347469305,1735842643562,-500.0,0.00019452,3]
[347469306,1735842643574,-151.3,0.00019452,3]
[347469307,1735842643586,-500.0,0.00019452,3]
[347469308,1735842643599,-500.0,0.00019452,3]
[347469309,1735842643607,-500.0,0.00019452,3]
[347469310,1735842643616,-500.0,0.00019452,3]
[347469311,1735842643627,-500.0,0.00019452,3]
[347469312,1735842643636,-500.0,0.00019452,3]
[347469313,1735842643648,-500.0,0.00019452,3]
[347469314,1735842643658,-500.0,0.00019452,3]
[347469315,1735842643667,-500.0,0.00019452,3]
[347469316,1735842643677,-200.32926924,0.00019452,3]
[347469317,1735842643686,-500.0,0.00019452,3]
[347469318,1735842643695,-500.0,0.00019452,3]
[347469319,1735842643705,-500.0,0.00019452,3]
[347469320,1735842643714,-500.0,0.00019452,3]
[347469321,1735842643724,-500.0,0.00019452,3]
[347469322,1735842643733,-500.0,0.00019452,3]
[347469323,1735842643742,-500.0,0.00019452,3]
[347469324,1735842643751,-500.0,0.00019452,3]
[347469325,1735842643760,-500.0,0.00019452,3]
[347469326,1735842643769,-500.0,0.00019452,3]
[347469327,1735842643778,-500.0,0.00019452,3]
[347469328,1735842643787,-500.0,0.00019452,3]
[347469329,1735842643796,-500.0,0.00019452,3]
[347469330,1735842643807,-500.0,0.00019452,3]
[347469331,1735842643816,-3289.25,0.00019452,3]
[347469332,1735842643825,-500.0,0.00019452,3]
[347469333,1735842643835,-500.0,0.00019452,3]
[347469334,1735842643844,-500.0,0.00019452,3]
[347469335,1735842643853,-523.72,0.00019452,3]
[347469336,1735842643863,-500.0,0.00019452,3]
[347469337,1735842643872,-500.0,0.00019452,3]
[347469338,1735842643881,-500.0,0.00019452,3]
[347469339,1735842643891,-726.2,0.00019452,3]
[347469340,1735842643901,-500.0,0.00019452,3]
[347469341,1735842643910,-500.0,0.00019452,3]
[347469342,1735842643919,-500.0,0.00019452,3]
[347469343,1735842643929,-3165.3,0.00019452,3]
[347469344,1735842643938,-648.47,0.00019452,3]
[347469345,1735842643948,-1507.84,0.00019452,3]
[347469346,1735842643957,-500.0,0.00019452,3]
[347469347,1735842643966,-500.0,0.00019452,3]
[347469348,1735842643975,-500.0,0.00019452,3]
[347469349,1735842643985,-532.89,0.00019452,2]
[347469350,1735842643994,-500.0,0.00019452,3]
[347469351,1735842644003,-500.0,0.00019452,3]
[347469352,1735842644012,-500.0,0.00019452,3]
[347469353,1735842644022,-2377.92,0.00019452,3]
[347469354,1735842644031,-500.0,0.00019452,3]
[347469355,1735842644040,-500.0,0.00019452,3]
[347469356,1735842644051,-500.0,0.00019452,3]
[347469357,1735842644061,-968.16,0.00019452,3]
[347469358,1735842644070,-500.0,0.00019452,3]
[347469359,1735842644080,-602.95,0.00019452,3]
[347469360,1735842644186,-551.19,0.00019452,3]
[347469361,1735842644197,-500.0,0.00019452,3]
[347469362,1735842644207,-925.7,0.00019452,3]
[347469363,1735842644216,-527.29,0.00019452,3]
[347469364,1735842644226,-500.0,0.00019452,3]
[347469365,1735842644237,-242.06,0.00019452,3]
[347469366,1735842644247,-500.0,0.00019452,3]
[347469367,1735842644257,-500.0,0.00019452,3]
[347469368,1735842644267,-1681.8,0.00019452,3]
[347469369,1735842644276,-500.0,0.00019452,3]
[347469370,1735842644286,-500.0,0.00019452,3]
[347469371,1735842644296,-500.0,0.00019452,3]
[347469372,1735842644307,-500.0,0.00019452,2]
[347469373,1735842644317,-500.0,0.00019452,3]
[347469374,1735842644328,-500.0,0.00019452,3]
[347469375,1735842644338,-500.0,0.00019452,3]
[347469376,1735842644349,-736.67,0.00019452,3]
[347469377,1735842644360,-14565.1,0.00019452,3]
[347469378,1735842644371,-421.39916142,0.00019559,2]
[347469379,1735842644381,-1000.0,0.00019721,2]
[347469380,1735842644392,-1000.0,0.00019721,2]
[347469381,1735842644402,-500.0,0.00019726,3]
[347469382,1735842644411,-500.0,0.00019726,3]
[347469383,1735842644421,-500.0,0.00019726,3]
[347469384,1735842644432,-500.0,0.00019726,3]
[347469385,1735842644443,-1755.04,0.00019726,3]
[347469386,1735842644453,-500.0,0.00019726,3]
[347469387,1735842644462,-500.0,0.00019726,3]
[347469388,1735842644472,-500.0,0.00019726,3]
[347469389,1735842644481,-1165.51,0.00019726,3]
[347469390,1735842644490,-500.0,0.00019726,3]
[347469391,1735842644501,-500.0,0.00019726,3]
[347469392,1735842644511,-872.02,0.00019726,3]
[347469393,1735842644521,-693.1,0.00019726,3]
[347469394,1735842644530,-500.0,0.00019726,3]
[347469395,1735842644540,-500.0,0.00019726,3]
[347469396,1735842644550,-500.0,0.00019726,3]
[347469397,1735842644559,-500.0,0.00019726,3]
[347469398,1735842644569,-500.0,0.00019726,3]
[347469399,1735842644579,-498.59,0.00019726,3]
[347469400,1735842644588,-500.0,0.00019726,3]
[347469401,1735842644598,-500.0,0.00019726,3]
[347469402,1735842644608,-320.83,0.00019726,3]
[347469403,1735842644617,-229.11,0.00019726,3]
[347469404,1735842644627,-500.0,0.00019726,3]
[347469405,1735842644636,-500.0,0.00019726,3]
[347469406,1735842644646,-500.0,0.00019726,3]
[347469407,1735842644656,-500.0,0.00019726,3]
[347469408,1735842644665,-500.0,0.00019726,3]
[347469409,1735842644674,-500.0,0.00019726,3]
[347469410,1735842644683,-500.0,0.00019726,3]
[347469411,1735842644693,-500.0,0.00019726,3]
[347469412,1735842644702,-500.0,0.00019726,3]
[347469413,1735842644711,-500.0,0.00019726,3]
[347469414,1735842644720,-500.0,0.00019726,3]
[347469415,1735842644730,-500.0,0.00019726,3]
[347469416,1735842644740,-3289.25,0.00019726,3]
[347469417,1735842644749,-500.0,0.00019726,3]
[347469418,1735842644759,-500.0,0.00019726,3]
[347469419,1735842644769,-500.0,0.00019726,3]
[347469420,1735842644778,-523.72,0.00019726,3]
[347469421,1735842644787,-500.0,0.00019726,3]
[347469422,1735842644797,-500.0,0.00019726,3]
[347469423,1735842644806,-500.0,0.00019726,3]
[347469424,1735842644816,-726.2,0.00019726,3]
[347469425,1735842644825,-500.0,0.00019726,3]
[347469426,1735842644834,-500.0,0.00019726,3]
[347469427,1735842644844,-500.0,0.00019726,3]
[347469428,1735842644853,-3165.3,0.00019726,3]
[347469429,1735842644862,-648.47,0.00019726,3]
[347469430,1735842644871,-1507.84,0.00019726,3]
[347469431,1735842644882,-500.0,0.00019726,3]
[347469432,1735842644891,-626.35,0.00019726,3]
[347469433,1735842644900,-500.0,0.00019726,3]
[347469434,1735842644909,-532.89,0.00019726,2]
[347469435,1735842644919,-500.0,0.00019726,3]
[347469436,1735842644928,-500.0,0.00019726,3]
[347469437,1735842644938,-500.0,0.00019726,3]
[347469438,1735842644947,-2377.92,0.00019726,3]
[347469439,1735842644957,-500.0,0.00019726,3]
[347469440,1735842644966,-500.0,0.00019726,3]
[347469441,1735842644976,-968.16,0.00019726,3]
[347469442,1735842644985,-649.76,0.00019726,3]
[347469443,1735842644994,-602.95,0.00019726,3]
[347469444,1735842645003,-925.7,0.00019726,3]
[347469445,1735842645013,-527.29,0.00019726,3]
[347469446,1735842645022,-500.0,0.00019726,3]
[347469447,1735842645032,-204.72,0.00019726,3]
[347469448,1735842645042,-470.96141222,0.00019726,3]
[347469449,1735842645053,-1681.8,0.00019726,3]
[347469450,1735842645063,-500.0,0.00019726,3]
[347469451,1735842645072,-618.13,0.00019726,3]
[347469452,1735842645082,-500.0,0.00019726,3]
[347469453,1735842645091,-500.0,0.00019726,3]
[347469454,1735842645100,-500.0,0.00019726,3]
[347469455,1735842645110,-500.0,0.00019726,3]
[347469456,1735842645119,-736.67,0.00019726,3]
[347469457,1735842645129,-14565.1,0.00019726,3]
[347469458,1735842645140,-154.03,0.00019726,2]
[347469459,1735842645149,-563.34907343,0.0001975,2]
[347469460,1735842645161,-11310.89626912,0.000199,2]
[347469461,1735842645171,-705.1227752,0.00019918,2]
[347469462,1735842645181,-500.0,0.00019973,2]
[347469463,1735842645190,-500.51599442,0.00019973,2]
[347469464,1735842645200,-4379.71,0.0002,2]
[347469465,1735842645211,-16759.0,0.0002,2]
[347469466,1735842645220,-40013.0,0.0002,2]
[347469467,1735842645230,-32486.74574877,0.0002,3]
[347469468,1735842645240,-429.03,0.0002,3]
[347469469,1735842645251,-500.0,0.0002,3]
[347469470,1735842645260,-500.0,0.0002,3]
[347469471,1735842645271,-310.26,0.0002,3]
[347469472,1735842645281,-1755.04,0.0002,3]
[347469473,1735842645291,-500.0,0.0002,3]
[347469474,1735842645302,-500.0,0.0002,3]
[347469475,1735842645313,-500.0,0.0002,3]
[347469476,1735842645324,-1165.51,0.0002,3]
[347469477,1735842645333,-500.0,0.0002,3]
[347469478,1735842645344,-500.0,0.0002,3]
[347469479,1735842645354,-872.02,0.0002,3]
[347469480,1735842645364,-693.1,0.0002,3]
[347469481,1735842645373,-500.0,0.0002,3]
[347469482,1735842645382,-500.0,0.0002,3]
[347469483,1735842645392,-500.0,0.0002,3]
[347469484,1735842645401,-500.0,0.0002,3]
[347469485,1735842645411,-500.0,0.0002,3]
[347469486,1735842645420,-500.0,0.0002,3]
[347469487,1735842645429,-500.0,0.0002,3]
[347469488,1735842645438,-500.8970968,0.0002,3]
[347469489,1735842645449,-500.0,0.0002,3]
[347469490,1735842645458,-421.68,0.0002,3]
[347469491,1735842645467,-500.0,0.0002,3]
[347469492,1735842645476,-500.0,0.0002,3]
[347469493,1735842645485,-500.0,0.0002,3]
[347469494,1735842645495,-500.0,0.0002,3]
[347469495,1735842645504,-500.0,0.0002,3]
[347469496,1735842645513,-500.0,0.0002,3]
[347469497,1735842645522,-500.0,0.0002,3]
[347469498,1735842645531,-500.0,0.0002,3]
[347469499,1735842645540,-500.0,0.0002,3]
[347469500,1735842645549,-3289.25,0.0002,3]
[347469501,1735842645559,-500.0,0.0002,3]
[347469502,1735842645568,-500.0,0.0002,3]
[347469503,1735842645577,-500.0,0.0002,3]
[347469504,1735842645586,-523.72,0.0002,3]
[347469505,1735842645595,-500.0,0.0002,3]
[347469506,1735842645604,-461.46,0.0002,3]
[347469507,1735842645613,-726.2,0.0002,3]
[347469508,1735842645622,-500.0,0.0002,3]
[347469509,1735842645632,-500.0,0.0002,3]
[347469510,1735842645642,-500.0,0.0002,3]
[347469511,1735842645651,-3165.3,0.0002,3]
[347469512,1735842645660,-648.47,0.0002,3]
[347469513,1735842645670,-1507.84,0.0002,3]
[347469514,1735842645679,-4002.73750928,0.0002,2]
[347469515,1735842645688,-500.0,0.0002,3]
[347469516,1735842645697,-500.0,0.0002,3]
[347469517,1735842645706,-151.0,0.0002,2]
[347469518,1735842645715,-532.89,0.0002,2]
[347469519,1735842645724,-424.8,0.0002,3]
[347469520,1735842645734,-500.0,0.0002,3]
[347469521,1735842645743,-473.44,0.0002,3]
[347469522,1735842645752,-1283.38119685,0.0002,3]
[347469531,1735842646529,-333.3549995,0.00019178,2]
[347469543,1735842989597,249.377129,0.00013973,2]
[347469606,1735843835190,-12237.80817479,0.00018928,2]
[347469607,1735843835200,-416.05140284,0.00019078,2]
[347469608,1735843835209,-501.78707364,0.0001912,5]
[347469609,1735843835219,-5164.75756255,0.00019143,2]
[347469610,1735843835228,-211.22,0.00019177,2]
[347469611,1735843835238,-862.13,0.00019178,2]
[347469612,1735843835247,-500.0,0.00019178,2]
[347469613,1735843835257,-500.0,0.00019178,2]
[347469614,1735843835267,-500.0,0.00019178,2]
[347469615,1735843835277,-516.33,0.00019178,2]
[347469616,1735843835286,-500.0,0.00019178,2]
[347469617,1735843835296,-500.0,0.00019178,2]
[347469618,1735843835306,-788.08,0.00019178,2]
[347469619,1735843835315,-500.0,0.00019178,2]
[347469620,1735843835325,-500.0,0.00019178,2]
[347469621,1735843835335,-500.0,0.00019178,2]
[347469622,1735843835344,-500.0,0.00019178,2]
[347469623,1735843835354,-235.94055217,0.00019178,2]
[347469624,1735843835364,-500.0,0.00019178,2]
[347469625,1735843835374,-500.0,0.00019178,2]
[347469626,1735843835382,-500.0,0.00019178,2]
[347469627,1735843835392,-500.0,0.00019178,2]
[347469628,1735843835401,-500.0,0.00019178,2]
[347469629,1735843835411,-500.0,0.00019178,2]
[347469630,1735843835422,-500.0,0.00019178,2]
[347469631,1735843835431,-500.0,0.00019178,2]
[347469632,1735843835441,-500.0,0.00019178,2]
[347469633,1735843835450,-500.0,0.00019178,2]
[347469634,1735843835459,-500.0,0.00019178,2]
[347469635,1735843835468,-500.0,0.00019178,2]
[347469636,1735843835477,-3224.93,0.00019178,2]
[347469637,1735843835486,-500.0,0.00019178,2]
[347469638,1735843835495,-500.0,0.00019178,2]
[347469639,1735843835505,-500.0,0.00019178,2]
[347469640,1735843835513,-500.0,0.00019178,2]
[347469641,1735843835525,-500.0,0.00019178,2]
[347469642,1735843835534,-500.0,0.00019178,2]
[347469643,1735843835543,-500.0,0.00019178,2]
[347469644,1735843835552,-500.0,0.00019178,2]
[347469645,1735843835561,-500.0,0.00019178,2]
[347469646,1735843835571,-500.0,0.00019178,2]
[347469647,1735843835580,-500.0,0.00019178,2]
[347469648,1735843835589,-500.0,0.00019178,2]
[347469649,1735843835599,-500.0,0.00019178,2]
[347469650,1735843835610,-500.0,0.00019178,2]
[347469651,1735843835619,-500.0,0.00019178,2]
[347469652,1735843835631,-500.0,0.00019178,2]
[347469653,1735843835642,-500.0,0.00019178,2]
[347469654,1735843835654,-500.0,0.00019178,2]
[347469655,1735843835665,-500.0,0.00019178,2]
[347469656,1735843835673,-228.40318252,0.00019178,2]
[347469657,1735843835682,-17731.21,0.00019178,2]
[347469658,1735843835691,-573.53320866,0.00019178,2]
[347469659,1735843835701,-500.0,0.00019178,2]
[347469660,1735843835709,-500.0,0.00019178,2]
[347469661,1735843835718,-626.35,0.00019178,2]
[347469662,1735843835727,-500.0,0.00019178,2]
[347469663,1735843835737,-500.0,0.00019178,2]
[347469664,1735843835746,-545.07,0.00019178,2]
[347469665,1735843835755,-4037.59,0.00019178,2]
[347469666,1735843835764,-2397.33,0.00019178,2]
[347469667,1735843835773,-500.0,0.00019178,2]
[347469668,1735843835783,-500.0,0.00019178,2]
[347469669,1735843835792,-530.5270834,0.00019178,2]
[347469670,1735843835802,-1961.5,0.00019178,2]
[347469671,1735843835811,-655.96,0.00019178,2]
[347469672,1735843835820,-500.0,0.00019178,2]
[347469673,1735843835830,-802.92,0.00019178,2]
[347469674,1735843835839,-502.37,0.00019178,2]
[347469675,1735843835849,-500.0,0.00019178,2]
[347469676,1735843835858,-500.0,0.00019178,2]
[347469677,1735843835866,-500.0,0.00019178,2]
[347469678,1735843835879,-264.12252093,0.00019178,2]
[347469679,1735843835889,-652.41,0.00019178,2]
[347469680,1735843835898,-500.0,0.00019178,2]
[347469681,1735843835907,-731.35,0.00019178,2]
[347469682,1735843835917,-500.0,0.00019178,2]
[347469683,1735843835926,-500.0,0.00019178,2]
[347469684,1735843835936,-500.0,0.00019178,2]
[347469685,1735843835945,-500.0,0.00019178,2]
[347469686,1735843835954,-1144.51,0.00019178,2]
[347469687,1735843835964,-500.0,0.00019178,2]
[347469688,1735843835973,-704.63,0.00019178,2]
[347469689,1735843835982,-500.0,0.00019178,2]
[347469690,1735843835991,-500.0,0.00019178,2]
[347469691,1735843836001,-500.0,0.00019178,2]
[347469692,1735843836010,-523.25,0.00019178,2]
[347469693,1735843836019,-1494.21,0.00019178,2]
[347469694,1735843836028,-484.33115501,0.00019178,2]
[347469695,1735843836037,-648.19,0.00019178,2]
[347469696,1735843836047,-500.0,0.00019178,2]
[347469697,1735843836057,-500.0,0.00019178,2]
[347469698,1735843836066,-500.0,0.00019178,2]
[347469699,1735843836075,-500.0,0.00019178,2]
[347469700,1735843836084,-500.0,0.00019178,2]
[347469701,1735843836092,-500.0,0.00019178,2]
[347469702,1735843836102,-500.0,0.00019178,2]
[347469703,1735843836111,-500.0,0.00019178,2]
[347469704,1735843836120,-500.0,0.00019178,2]
[347469705,1735843836129,-500.0,0.00019178,2]
[347469706,1735843836138,-500.0,0.00019178,2]
[347469707,1735843836148,-500.0,0.00019178,2]
[347469708,1735843836157,-4451.29,0.00019178,2]
[347469709,1735843836167,-500.0,0.00019178,2]
[347469710,1735843836176,-2076.31,0.00019178,2]
[347469711,1735843836185,-500.0,0.00019178,2]
[347469712,1735843836194,-500.0,0.00019178,2]
[347469713,1735843836204,-1168.22,0.00019178,2]
[347469714,1735843836213,-500.0,0.00019178,2]
[347469715,1735843836222,-500.0,0.00019178,2]
[347469716,1735843836231,-500.0,0.00019178,2]
[347469717,1735843836241,-1500.25,0.00019178,2]
[347469718,1735843836252,-500.0,0.00019178,2]
[347469719,1735843836261,-500.0,0.00019178,2]
[347469720,1735843836270,-71.78940597,0.00019178,2]
[347469721,1735843836283,-428.21059403,0.00019178,2]
[347469722,1735843836292,-522.63184398,0.00019178,2]
[347469723,1735843836303,-9.89815602,0.00019178,2]
[347469724,1735843836312,-500.0,0.00019178,2]
[347469725,1735843836321,-500.0,0.00019178,2]
[347469726,1735843836331,-386.02184398,0.00019178,2]
[347469727,1735843836342,-113.97815602,0.00019178,2]
[347469728,1735843836351,-500.0,0.00019178,2]
[347469729,1735843836360,-167.414215,0.00019178,2]
[347469730,1735843836369,-53.06516279,0.00019281,2]
[347469731,1735843836381,-684.69735597,0.00019281,2]
[347469732,1735843836397,-535.55,0.00019178,2]
[347469733,1735843836407,-91.288,0.00019281,2]
[347469734,1735843836419,-759.7105542,0.00019281,2]
[347469761,1735843838480,-500.0,0.00019178,2]
[347469763,1735843838490,-392.92556305,0.00019178,2]
[347469765,1735843838499,-500.0,0.00019178,2]
[347469767,1735843838508,-500.0,0.00019178,2]
[347469768,1735843838518,-500.0,0.00019178,2]
[347469769,1735843838529,-10649.04710183,0.00019281,2]
[347469770,1735843838539,-500.0,0.00019451,2]
[347469771,1735843838548,-500.0,0.00019451,2]
[347469772,1735843838558,-500.0,0.00019451,2]
[347469773,1735843838568,-500.0,0.00019451,2]
[347469774,1735843838577,-340.31314395,0.00019451,2]
[347469775,1735843838586,-500.0,0.00019451,2]
[347469776,1735843838596,-500.0,0.00019451,2]
[347469777,1735843838606,-327.70215539,0.00019451,2]
[347469778,1735843838615,-500.0,0.00019451,2]
[347469779,1735843838624,-500.0,0.00019451,2]
[347469780,1735843838633,-500.0,0.00019451,2]
[347469781,1735843838643,-500.0,0.00019451,2]
[347469782,1735843838652,-500.0,0.00019451,2]
[347469783,1735843838661,-500.0,0.00019451,2]
[347469784,1735843838671,-500.0,0.00019451,2]
[347469785,1735843838681,-500.0,0.00019451,2]
[347469786,1735843838690,-551.60610478,0.00019451,2]
[347469787,1735843838700,-500.0,0.00019451,2]
[347469788,1735843838709,-500.0,0.00019451,2]
[347469789,1735843838720,-500.0,0.00019451,2]
[347469790,1735843838730,-500.0,0.00019451,2]
[347469791,1735843838739,-500.0,0.00019451,2]
[347469792,1735843838749,-500.0,0.00019451,2]
[347469793,1735843838882,-500.0,0.00019451,2]
[347469794,1735843838893,-500.0,0.00019451,2]
[347469795,1735843838903,-500.0,0.00019451,2]
[347469796,1735843838914,-500.0,0.00019451,2]
[347469797,1735843838923,-500.0,0.00019451,2]
[347469798,1735843838932,-500.0,0.00019451,2]
[347469799,1735843838942,-385.0,0.00019451,2]
[347469800,1735843838952,-500.0,0.00019451,2]
[347469801,1735843838961,-500.0,0.00019451,2]
[347469802,1735843838972,-500.0,0.00019451,2]
[347469803,1735843838982,-500.0,0.00019451,2]
[347469804,1735843838992,-500.0,0.00019451,2]
[347469805,1735843839002,-500.0,0.00019451,2]
[347469806,1735843839011,-500.0,0.00019451,2]
[347469807,1735843839020,-500.0,0.00019451,2]
[347469808,1735843839029,-500.0,0.00019451,2]
[347469809,1735843839038,-500.0,0.00019451,2]
[347469810,1735843839048,-500.0,0.00019451,2]
[347469811,1735843839057,-500.0,0.00019451,2]
[347469812,1735843839066,-500.0,0.00019451,2]
[347469813,1735843839075,-500.0,0.00019451,2]
[347469814,1735843839084,-500.0,0.00019451,2]
[347469815,1735843839094,-500.0,0.00019451,2]
[347469816,1735843839103,-500.0,0.00019451,2]
[347469817,1735843839113,-500.0,0.00019451,2]
[347469818,1735843839122,-650.0,0.00019451,2]
[347469819,1735843839132,-500.0,0.00019451,2]
[347469820,1735843839141,-650.0,0.00019451,2]
[347469821,1735843839150,-500.0,0.00019451,2]
[347469822,1735843839160,-500.0,0.00019451,2]
[347469823,1735843839169,-500.0,0.00019451,2]
[347469824,1735843839178,-500.0,0.00019451,2]
[347469825,1735843839188,-500.0,0.00019451,2]
[347469826,1735843839197,-500.0,0.00019451,2]
[347469827,1735843839207,-500.0,0.00019451,2]
[347469828,1735843839216,-500.0,0.00019451,2]
[347469829,1735843839226,-500.0,0.00019451,2]
[347469830,1735843839235,-650.0,0.00019451,2]
[347469831,1735843839245,-500.0,0.00019451,2]
[347469832,1735843839255,-500.0,0.00019451,2]
[347469833,1735843839264,-500.0,0.00019451,2]
[347469834,1735843839274,-500.0,0.00019451,2]
[347469835,1735843839283,-500.0,0.00019451,2]
[347469836,1735843839292,-500.0,0.00019451,2]
[347469837,1735843839302,-250.0,0.00019451,2]
[347469838,1735843839311,-500.0,0.00019451,2]
[347469839,1735843839321,-500.0,0.00019451,2]
[347469840,1735843839330,-500.0,0.00019451,2]
[347469841,1735843839339,-500.0,0.00019451,2]
[347469842,1735843839348,-500.0,0.00019451,2]
[347469843,1735843839357,-500.0,0.00019451,2]
[347469844,1735843839366,-500.0,0.00019451,2]
[347469845,1735843839376,-500.0,0.00019451,2]
[347469846,1735843839385,-500.0,0.00019451,2]
[347469847,1735843839394,-500.0,0.00019451,2]
[347469848,1735843839404,-500.0,0.00019451,2]
[347469849,1735843839413,-500.0,0.00019451,2]
[347469850,1735843839425,-500.0,0.00019451,2]
[347469851,1735843839435,-229.62929721,0.00019451,2]
[347469852,1735843839445,-500.0,0.00019451,2]
[347469853,1735843839454,-500.0,0.00019451,2]
[347469854,1735843839463,-500.0,0.00019451,2]
[347469855,1735843839472,-500.0,0.00019451,2]
[347469856,1735843839482,-500.0,0.00019451,2]
[347469857,1735843839491,-500.0,0.00019451,2]
[347469858,1735843839500,-500.0,0.00019451,2]
[347469859,1735843839510,-500.0,0.00019451,2]
[347469860,1735843839519,-500.0,0.00019451,2]
[347469861,1735843839532,-301.87579795,0.00019451,2]
[347469862,1735843839541,-500.0,0.00019451,2]
[347469863,1735843839551,-200.69159421,0.00019451,2]
[347469864,1735843839560,-500.0,0.00019451,2]
[347469865,1735843839570,-500.0,0.00019451,2]
[347469866,1735843839580,-500.0,0.00019451,2]
[347469867,1735843839589,-500.0,0.00019451,2]
[347469868,1735843839599,-500.0,0.00019451,2]